Cogmind - Beta 16.1 @@@ ROGUE MODE // 2026.04.07 @ 04:44:17 Player: Vikcy6666 Result: Destroyed by G-47 Trooper with Particle Gun Performance ------------- Evolutions (2) 1000 Regions Visited (4) 800 Robots Destroyed (87) 435 Value Destroyed (2599) 2599 Prototype IDs (4) 80 Alien Tech Used (0) 0 Bonus (84) 84 TOTAL SCORE: 4998 Bonus ------- High Alert Combat Kills 84 Cogmind --------- Core Integrity 0/550 Matter 285/300 Energy 3/300 System Corruption 2% Temperature Cool (9) Movement Core (200) Ox3 Location -8/Materials Parts ------- > --- POWER (1) -------- (None) > --- PROPULSION (2) --- (None) > --- UTILITY (4) ------ Improved Cooling System Improved Cooling System Large Battery Melee Analysis Suite > --- WEAPON (4) ------- Chainsword > --- INVENTORY (5) ---- Compact Wheel Chainsword Peak State ------------ > --- POWER ------------ Deuterium Engine > --- PROPULSION ------- Carbon-fiber Leg Carbon-fiber Leg > --- UTILITY ---------- Improved Cooling System Large Battery Melee Analysis Suite Hardlight Generator > --- WEAPON ----------- Gatling Laser Gauss Rifle Missile Launcher Chainsword > --- INVENTORY -------- Light Nuclear Core Improved Cooling System Gatling Laser Chainsword [Rating: 36] Favorites ----------- Power Deuterium Engine Engine Deuterium Engine Power Core Light Nuclear Core Propulsion Carbon-fiber Leg Treads Light Treads Leg Carbon-fiber Leg Wheel Wheel Utility Large Battery Device Hardlight Generator Storage Large Battery Processor Melee Analysis Suite Protection Improved Light Armor Plating Weapon Heavy Assault Rifle Energy Gun Beam Rifle Energy Cannon Advanced Beam Cannon Ballistic Gun Heavy Assault Rifle Ballistic Cannon Assault Cannon Launcher Missile Launcher Slashing Weapon Chainsword Build | -11 -10 -9 -9 -8 ------- Run | Yrd Mat Mat Sto Mat Slots Evolved 4 | . . 2 . 2 Power . | . . . . . Propulsion . | . . . . . Utility 2 | . . 1 . 1 Weapon 2 | . . 1 . 1 Parts Attached 68 | 5 9 12 17 25 Power 6 | 1 . . 3 2 Engine 5 | 1 . . 3 1 Core 1 | . . . . 1 Reactor . | . . . . . Propulsion 16 | 2 2 2 7 3 Treads 5 | . . 2 3 . Leg 9 | . 2 . 4 3 Wheel 2 | 2 . . . . Hover . | . . . . . Flight . | . . . . . Utility 21 | . 6 6 2 7 Device 6 | . . . 1 5 Storage 4 | . 4 . . . Processor 2 | . . . . 2 Hackware . | . . . . . Protection 9 | . 2 6 1 . Artifact . | . . . . . Weapon 25 | 2 1 4 5 13 Energy Gun 9 | 1 . 2 3 3 Energy Cannon 4 | . . . 1 3 Ballistic Gun 7 | 1 . 2 1 3 Ballistic Cannon 1 | . . . . 1 Launcher 2 | . 1 . . 1 Special Weapon . | . . . . . Impact Weapon . | . . . . . Slashing Weapon 2 | . . . . 2 Piercing Weapon . | . . . . . Special Melee Weapon . | . . . . . Unidentified Prototypes 2 | . . . 1 1 Parts Lost 16 | . . 3 3 10 Power 3 | . . . 1 2 Propulsion 3 | . . . 1 2 Utility 2 | . . . 1 1 Weapon 8 | . . 3 . 5 Highest Loss Streak 5 | . . 2 1 5 To Critical Strikes . | . . . . . Average Backups 4 | 1 4 3 4 4 Power . | . 1 1 . . Propulsion . | . 1 . . . Utility . | . . 2 1 . Weapon 2 | . 1 . 2 2 Tool/Special . | . . . . . Unused Backups 15 | . 2 1 6 6 Power 1 | . . . . 1 Propulsion . | . . . . . Utility 4 | . 1 1 1 1 Weapon 10 | . 1 . 5 4 Tool/Special . | . . . . . Average Slot Usage (%) 97 | . 93 92 98 98 Engine 9 | . 14 11 10 8 Treads 4 | . . 6 13 . Leg 13 | . 3 12 8 17 Wheel 1 | . 24 . . . Device 12 | . . . 7 19 Storage 7 | . 13 . 5 9 Processor 3 | . . . . 7 Protection 9 | . 8 32 20 . Energy Gun 6 | . 1 4 14 3 Energy Cannon 3 | . . . 3 4 Ballistic Gun 14 | . 14 18 15 14 Launcher 4 | . 12 5 . 5 Slashing Weapon 3 | . . . . 6 Peak Build Rating 36 | 5 7 17 17 36 Average Rating 23 | 3 6 10 15 31 On Entrance 9 | . 5 7 17 17 Avg Prop Armor Cover (%) . | . . . . . Naked Turns . | . . . . . Heaviest Build 37 | 8 17 21 22 37 Greatest Support 40 | 20 20 40 40 30 Greatest Overweight (x) 9 | . . 6 7 9 Average Overweight (x) . | . . . . . Largest Inventory Capacity 5 | 5 5 5 5 5 Average Capacity 5 | 5 5 5 5 5 Most Carried 5 | 4 5 5 5 5 Average Carried 4 | 1 4 3 4 4 Final Capacity 5 | 5 5 5 5 5 Final Carried 5 | 4 5 5 5 2 Class Distribution -------------------- 63% | Scavenger-Tank 25% | Tank 10% | Mutant Dominant Class ---------------- Mutant | -10/Materials Tank | -9/Materials Scavenger-Tank | -9/Storage Scavenger-Tank | -8/Materials Resources | -11 -10 -9 -9 -8 ----------- Run | Yrd Mat Mat Sto Mat Matter Collected 1668 | 222 229 244 337 636 Remotely . | . . . . . Salvage Created 2881 | . 268 147 887 1579 Parts 224 | . 31 14 67 112 Haulers Intercepted 2 | . 1 . . 1 Recyclers Shooed 2 | . . . . 2 Parts Field Recycled . | . . . . . Retrieved Matter . | . . . . . Parts Self-Destructed . | . . . . . Prevented . | . . . . . Parts Restored . | . . . . . Kills | -11 -10 -9 -9 -8 ------- Run | Yrd Mat Mat Sto Mat Combat Hostiles Destroyed 72 | . 8 5 23 36 Melee 6 | . . . . 6 Guns 41 | . 1 5 22 13 Cannons 12 | . . . 1 11 AOE 13 | . 7 . . 6 Classes Destroyed 13 | . 7 1 1 4 Builder 1 | . 1 . . . Tunneler 1 | . 1 . . . Hauler 2 | . 1 . . 1 Recycler 4 | . 1 . 2 1 Operator 1 | . . . . 1 Watcher 6 | . 3 . 1 2 Swarmer 22 | . 3 2 10 7 Grunt 25 | . 5 1 6 13 Brawler 5 | . . . 1 4 Duelist 2 | . . . . 2 Protector 1 | . . . . 1 Sentry 16 | . . 2 6 8 Hunter 1 | . . . . 1 Best Kill Streak 9 | . 9 2 8 5 Combat Bots Only 8 | . 4 2 8 5 Max Kills in Single Turn 3 | . 3 1 2 2 Gunslinging . | . . . . . Exploded 3 | . 3 . . 2 Melee 1 | . . . . 1 Uniques/NPCs Destroyed . | . . . . . Combat | -11 -10 -9 -9 -8 -------- Run | Yrd Mat Mat Sto Mat Hostile Shots Fired 376 | . 12 71 100 193 Missed 90 | . 5 16 21 48 Hits 286 | . 7 55 79 145 Melee 10 | . . . 2 8 Projectile 276 | . 7 55 77 137 Critical Strikes 6 | . . . 1 5 Damage Taken 3573 | . 128 623 915 1907 Core 742 | . 68 42 73 559 Absorbed by Shields 232 | . . . . 232 Redirected to Shielding 48 | . . 19 4 25 Core Remaining (%) 81 | 100 72 . 71 . Volleys Fired 145 | . 18 24 49 54 Largest 4 | . 2 3 3 4 Hottest 197 | . 50 90 147 197 Shots Fired 393 | . 28 49 145 171 Gun 306 | . 14 43 141 108 Cannon 54 | . . . 4 50 Launcher 33 | . 14 6 . 13 Special . | . . . . . Kinetic 211 | . 14 36 76 85 Thermal 135 | . . 7 69 59 Explosive 33 | . 14 6 . 13 Electromagnetic 14 | . . . . 14 Robot Hit Streak 14 | . 6 14 10 13 Robot Miss Streak 6 | . 2 4 5 6 Penetration Max 1 | . . . . 1 Secondary Targets 5 | . . 2 2 1 Max Gunslinging Chain 1 | . . 1 1 1 Shots Hit Robots 232 | . 16 29 79 108 Core Hits 156 | . 25 13 40 78 Critical Kills 1 | . . . . 1 Critical Parts Destroyed 2 | . . . 1 1 Critical Strikes 6 | . . . 2 4 Burn 1 | . . . 1 . Destroy 3 | . . . 1 2 Sever 2 | . . . . 2 Melee Attacks 20 | . . . . 20 Impact . | . . . . . Slashing 20 | . . . . 20 Piercing . | . . . . . Sneak Attacks . | . . . . . Combat Hostiles . | . . . . . Follow-up Attacks . | . . . . . Damage Inflicted 5307 | . 771 364 1058 3114 Guns 2566 | . 92 209 1038 1227 Cannons 849 | . . . 20 829 Explosions 1446 | . 679 155 . 612 Melee 441 | . . . . 441 Ramming 5 | . . . . 5 Kinetic 1686 | . 92 159 513 922 Thermal 1575 | . . 50 545 980 Explosive 1446 | . 679 155 . 612 Electromagnetic 154 | . . . . 154 Impact . | . . . . . Slashing 441 | . . . . 441 Piercing . | . . . . . Highest Corruption 2 | . . . . 2 Average Corruption 2 | . . . . 2 Corruption Purged . | . . . . . Corruption Blocked . | . . . . . Effects 1 | . . . . 1 Energy Discharges 1 | . . . . 1 Overload Shots . | . . . . . Overflow Damage 65 | . . . . 65 Projectiles 13 | . . . . 13 Explosions 39 | . . . . 39 Melee 13 | . . . . 13 Knockbacks . | . . . . . Impact . | . . . . . Kinetic . | . . . . . Secondary . | . . . . . Self-Inflicted Damage 138 | . 56 9 . 73 Shots 5 | . 2 1 . 2 Rammed . | . . . . . Targets Rammed 1 | . . . . 1 Kicked 1 | . . . . 1 Crushed . | . . . . . Highest Temperature 343 | . 38 343 325 145 Average Temperature 97 | . 13 196 90 39 Received Heat Transfer 1065 | . 33 138 285 609 Effects 4 | . . 1 3 . Energy Bleed 1 | . . 1 . . Interference 3 | . . . 3 . Siege Activations . | . . . . . Martial Activations . | . . . . . Shielding Activations . | . . . . . Robots Disrupted . | . . . . . Combat Hostiles . | . . . . . Robots Corrupted . | . . . . . Combat Hostiles . | . . . . . Parts Fried . | . . . . . Impact Corruptions . | . . . . . Robots Melted . | . . . . . Combat Hostiles . | . . . . . Parts Melted 2 | . . . 2 . Heat Transferred 3441 | . . 148 1443 1850 Parts Sabotaged . | . . . . . Parts Stolen . | . . . . . Parts Stripped . | . . . . . Power Chain Reactions . | . . . . . Alert | -11 -10 -9 -9 -8 ------- Run | Yrd Mat Mat Sto Mat Maximum Alert Level 2 | . 1 . 1 2 Low Security (%) 39 | 100 61 100 49 21 Level 1 47 | . 38 . 50 54 Level 2 12 | . . . . 23 Level 3 . | . . . . . Level 4 . | . . . . . Level 5 . | . . . . . High Security . | . . . . . Max Security . | . . . . . Peak Influence 535 | . 357 189 292 535 Initial 133 | . . 133 62 95 Average 245 | . 177 151 169 313 Influence Increases 2370 | . 427 176 612 1155 Destroy 0b10 Robot/C 1420 | . 160 100 460 700 Destroy 0b10 Robot/NC 80 | . 35 . 15 30 Destroy Leader 346 | . 38 30 112 166 Successful Hack 18 | . 4 . 9 5 Disable Machine 150 | . 105 30 15 . Destroy Structure 236 | . 85 16 1 134 Lose Combat Pursuer 120 | . . . . 120 Influence Decreases 1850 | . 110 344 534 862 Entered New Map 403 | . . 184 87 132 Time Decay 1287 | . 110 130 417 630 Lost Part 160 | . . 30 30 100 Squads Dispatched 14 | . 1 . 4 9 Investigation 4 | . 1 . 1 2 Extermination . | . . . . . Reinforcement 2 | . . . . 2 Assault 1 | . . . . 1 Garrison 7 | . . . 3 4 Intercept . | . . . . . Searches Triggered . | . . . . . Construction Impeded 1 | . . . . 1 Haulers Reinforced . | . . . . . Active Scanning Responses . | . . . . . Cargo Convoy Interrupts . | . . . . . Stealth | -11 -10 -9 -9 -8 --------- Run | Yrd Mat Mat Sto Mat Distress Signals 6 | . . . 3 3 Communications Jammed . | . . . . . Distress Signals . | . . . . . Times Spotted 103 | . 11 8 27 57 Peak Tracking Total 10 | . 3 4 7 10 Tactical Retreats 6 | . . . . 6 Traps | -11 -10 -9 -9 -8 ------- Run | Yrd Mat Mat Sto Mat Traps Triggered 1 | . . . . 1 Indirectly . | . . . . . Trap Hack Attempts . | . . . . . Triggered . | . . . . . Disarmed 7 | . 6 . 1 . Reprogrammed . | . . . . . Reused . | . . . . . Traps Extracted . | . . . . . Installed . | . . . . . Triggered . | . . . . . Machines | -11 -10 -9 -9 -8 ---------- Run | Yrd Mat Mat Sto Mat Machines Disabled 10 | . 7 2 1 . Max in Single Turn 2 | . 2 1 1 . Machines Repaired . | . . . . . Machines Dismantled . | . . . . . Machines Sabotaged . | . . . . . Overloaded Fab Kills . | . . . . . Hacking | -11 -10 -9 -9 -8 --------- Run | Yrd Mat Mat Sto Mat Machines Accessed 12 | . 2 . 4 6 Terminals 10 | . 2 . 4 4 Fabricators . | . . . . . Repair Stations . | . . . . . Recycling Units 1 | . . . . 1 Scanalyzers 1 | . . . . 1 Garrison Access . | . . . . . Total Hacks 41 | . 4 . 16 21 Successful 23 | . 3 . 7 13 Failed 17 | . 1 . 9 7 Catastrophic 3 | . . . 3 . Database Lockouts 1 | . . . . 1 Manual 1 | . . . 1 . Terminals 33 | . 4 . 16 13 Fabricators . | . . . . . Repair Stations . | . . . . . Recycling Units 2 | . . . . 2 Scanalyzers 6 | . . . . 6 Garrison Access . | . . . . . Terminal Hacks 17 | . 3 . 7 7 Robot Analysis 1 | . 1 . . . Prototype ID Bank 1 | . . . . 1 Emergency Access Points 2 | . . . 1 1 Alert Level 2 | . . . 1 1 Locate Traps 3 | . 1 . 1 1 Disarm Traps 2 | . 1 . 1 . Maintenance Status 1 | . . . 1 . Surveillance Status 1 | . . . 1 . Investigation Status 1 | . . . 1 . Zone Layout 3 | . . . . 3 Fabricator Hacks . | . . . . . Repair Station Hacks . | . . . . . Recycling Unit Hacks 2 | . . . . 2 Process 1 | . . . . 1 Retrieve Matter 1 | . . . . 1 Scanalyzer 4 | . . . . 4 Insert Component 1 | . . . . 1 Analyze 2 | . . . . 2 Retrieve Study 1 | . . . . 1 Garrison Access Hacks . | . . . . . Unauthorized Hacks . | . . . . . Terminals . | . . . . . Fabricators . | . . . . . Repair Stations . | . . . . . Recycling Units . | . . . . . Scanalyzers . | . . . . . Garrison Access . | . . . . . Data Cores Recovered . | . . . . . Used . | . . . . . Hacking Detections 10 | . 1 . 4 5 Full Trace Events 4 | . 1 . 1 2 Feedback Events . | . . . . . Feedback Blocked . | . . . . . Robot Schematics Acquired . | . . . . . Robots Built . | . . . . . Authchips . | . . . . . Time . | . . . . . Total Robot Build Rating . | . . . . . Part Schematics Acquired 1 | . . . . 1 Parts Built . | . . . . . Authchips . | . . . . . Time . | . . . . . Total Part Build Rating . | . . . . . Part Studies Acquired 1 | . . . . 1 Parts Repaired . | . . . . . Time . | . . . . . Parts Recycled . | . . . . . Recycled Matter 259 | . . . . 259 Retrieved Matter 460 | . . . . 460 Retrieved Components . | . . . . . Parts Scanalyzed 1 | . . . . 1 Part Schematics Acquired 1 | . . . . 1 Parts Damaged . | . . . . . Bothacking | -11 -10 -9 -9 -8 ------------ Run | Yrd Mat Mat Sto Mat Used RIF Installer . | . . . . . Robots Hacked . | . . . . . Non-combat . | . . . . . Combat . | . . . . . Robot Hacks Applied . | . . . . . Relay Couplers Released . | . . . . . Fabnet Peak Effective % . | . . . . . Robots Rewired . | . . . . . Allies Hacked . | . . . . . Hacks Repelled . | . . . . . Allies | -11 -10 -9 -9 -8 -------- Run | Yrd Mat Mat Sto Mat Total Allies . | . . . . . Largest Group . | . . . . . Highest-Rated Group . | . . . . . Highest-Rated Ally . | . . . . . Total Orders . | . . . . . Ally Attacks . | . . . . . Total Damage . | . . . . . Kills . | . . . . . Allies Corrupted . | . . . . . Allies Melted . | . . . . . Intel | -11 -10 -9 -9 -8 ------- Run | Yrd Mat Mat Sto Mat Active Infowar (turns) 376 | . . . . 376 Structural 376 | . . . . 376 Robot Analysis Total 1 | . 1 . . . Derelict Logs Recovered . | . . . . . Drone Launches . | . . . . . Drone Recoveries . | . . . . . Exploration | -11 -10 -9 -9 -8 ------------- Run | Yrd Mat Mat Sto Mat Turns Passed 3997 | 58 257 268 1225 2189 Spaces Moved 1621 | 56 213 117 670 565 Core 14 | 3 . 1 4 6 Treads 371 | . . 43 328 . Legs 992 | . 22 73 338 559 Wheels 244 | 53 191 . . . Hover . | . . . . . Flight . | . . . . . Fastest Speed 50 | 50 80 120 120 120 Average Speed 146 | 78 84 149 141 181 Slowest Speed 500 | 80 120 350 400 500 Overloaded Moves . | . . . . . Propulsion Burnouts . | . . . . . Robots Hopped . | . . . . . Potential Cave-ins . | . . . . . Cave-ins Triggered . | . . . . . Exploration Rate (%) 37 | 3 44 13 85 42 Regions Visited 4 Branch Regions 1 Pre-discovered Areas . | . . . . . Known Exits Taken . | . . . . . Unknown Exits Taken 4 | 1 1 1 1 . Scrap Searched . | . . . . . Spaces Dug 24 | . . . . 24 Terrain Destroyed 302 | . 121 15 . 166 Melee . | . . . . . Projectile 8 | . . . . 8 AOE 294 | . 121 15 . 158 Terrain Rammed . | . . . . . Walls Destroyed . | . . . . . Machines Disabled . | . . . . . Actions | -11 -10 -9 -9 -8 --------- Run | Yrd Mat Mat Sto Mat Total 2946 | 69 266 178 853 1580 Wait 964 | . 12 10 77 865 Move 1617 | 55 212 116 669 565 Hop . | . . . . . Pick Up 66 | 9 6 8 19 24 Fast Attach 19 | . 6 5 4 4 Attach 48 | 5 2 7 13 21 Detach 1 | . . . . 1 Swap 3 | . 1 . 1 1 Drop 62 | . 9 8 21 24 Fire 145 | . 18 24 49 54 Melee 20 | . . . . 20 Ram . | . . . . . Kick 1 | . . . . 1 Crush . | . . . . . Escape Stasis . | . . . . . Rewire . | . . . . . Trap . | . . . . . Miscellaneous . | . . . . . Route ------- -11/Scrapyard -10/Materials -9/Materials -9/Storage -8/Materials History --------- Turn | Location | Event 27 | -11/Scrapyard | Discovered new exit (range 15) 59 | -11/Scrapyard | Entered Materials 263 | -10/Materials | Discovered new exit (range 16) 309 | -10/Materials | Build established: Mutant 316 | -10/Materials | Entered another Materials area 316 | -9/Materials | Evolved 2 slots: Utility x1, Weapon x1 411 | -9/Materials | Discovered new exit (range 15) 584 | -9/Materials | Entered Storage 814 | -9/Storage | Build established: Scavenger-Tank 924 | -9/Storage | Destroyed 8 combat bots 1058 | -9/Storage | Garrison activated, responded to threat 1791 | -9/Storage | Discovered new exit (range 15) 1809 | -9/Storage | Entered Materials 1809 | -8/Materials | Evolved 2 slots: Utility x1, Weapon x1 1885 | -8/Materials | Central database locked down 1894 | -8/Materials | Build established: Tank 2304 | -8/Materials | Garrison activated, responded to threat 2491 | -8/Materials | Build established: Scavenger-Tank 3479 | -8/Materials | Garrison activated, responded to threat 3809 | -8/Materials | First assault squad dispatched 3877 | -8/Materials | Core integrity fell below 50% 3968 | -8/Materials | Lost 4 parts (1p1n1u1w) 3992 | -8/Materials | Core integrity fell below 20% 3998 | -8/Materials | Destroyed by G-47 Trooper with Particle Gun Last Messages --------------- 03947_ K-01 Serf collects debris. 03962_ Acquired EM Pulse Cannon. 03962_ R-06 Scavenger collects Terrain Scan Processor. 03965_ System corrupted: Energy discharge (-74). 03967_ K-01 Serf cleans the Fusion Modulator. 03975_ I-25 Savior destroyed. 03979_ K-01 Serf cleans the Fusion Modulator. 03983_ Assault Cannon destroyed. 03984_ Gatling Laser destroyed. 03986_ R-06 Scavenger collects Com. Battery. 03988_ Lgt. Nuclear Core destroyed. 03989_ Critical hit (Burn: +37). 03990_ R-06 Scavenger collects Com. Battery. 03991_ G-47 Trooper destroyed. 03993_ Gatling Laser destroyed. 03993_ EM Pulse Cannon destroyed. 03994_ Acquired Com. Wheel. 03995_ S-10 Pest Lgt. Ion Engine severed. 03998_ S-10 Pest destroyed. Map ----- +----------------------------------------------------+ | ?????????????????????????????????????????????????? | | ?????????????????????????????????????????????????? | | ?????????????????????????????????????????????????? | | ?????????????????????????????????????????????????? | | ???????????????????????????###########???????????? | | ???????????????????????????# #???????????? | | ???????????????????????????# #???????????? | | ???????????????????????????# #???????????? | | ???????????????????????????# #???????????? | | ???????????????????????????# #???????????? | | ???????????????????????????# #???????????? | | ???????????????????????????# #???????????? | | ???????????????????????????# #???????????? | | ????????????????????????????####+####????????????? | | ????????????????????????????## ###???????????? | | ???????????????????# #########! # #???????????? | | ???????????????????# ! %! # #???????????? | | ????????????????????## ####### ! ###???????????? | | ???????????????????????????# # |%= ##????????????? | | ???????????????????????######## ! ###????????????? | | ?????????????????????# # """ !# ###??????# ?? | | ???????????????#####?# # "R" # k##???????# ?? | | ???????????????# ### # " " s% #????????# ?? | | ???????????? ### # = s # #????????# ?? | | ??????????? # [s]r #% #????????# ?? | | ?????????? ^^^ ^ #*@%]]%# # ############?? | | ????????????"" ##/##### %### ?? | | ????????????"T =Y#?? # # # """ """ ?? | | ????????????"" g #?? # # # """"" "T" ?? | | ?????????? #?? # ### """"" ?? | | ?????????? #####+### # ## """"" ?? | | ??????????? # ## ### """ #? | | ???????????###### ### """ ## ### ?? | | ????????????????# #?# """ #! ##########+### | | ???????########## ### """ # | | ???????# # # / T | | ???????# # # """ # ] * | | ???????# + T [+ """ # ###+#########?? | | ???????# ! # # """ ## ## [ ! #???? | | ???????# # # ## ## #???? | | ???????# ### ############# ## #???? | | ???????########## #???# + ## """ """ #???? | | ??????????????#"" #???# # ## """ """ #???? | | ??????????????#T #???# = # ## """ """ #???? | | ??????????????### #???######### ## #???? | | ????????????????# #?????????### # #???? | | ????????????????# #?????????# # ####+######???? | | ????????????????# #######???# # #??# #????????? | | ????????????????# ##### ####### ##??# #????????? | | ??????????"""" # ##??# #????????? | +----------------------------------------------------+ Best States ------------- Heat Dissipation 85 Energy Generation 14 Energy Capacity 475 Matter Stores 300 Matter Capacity 700 Sight Range 16 Terrain Scan Density 110 Armor Coverage 450 Propulsion Shielding 33 Weapon Shielding 33 Evasion (%) 55 Melee Accuracy 5 Recoil Reduction 2 Item Schematics ----------------- Hvy. Assault Rifle | -8/Materials | Scanalyzed Robot Schematics ------------------ None Fabricated ------------ Nothing Repaired ---------- Nothing Studied --------- Hvy. Assault Rifle | -8/Materials | Hacked Alien Tech Used ----------------- None Achievements -------------- None Challenges ------------ None Game ------ Seed NavigationDefenseRocket Manual? 0 Play Time 01:04:33 Cumulative 12.4 hours Start 2026.04.07 @ 03:28:19 End 2026.04.07 @ 04:44:17 Sessions 1 Manual Loads 0 Difficulty Rogue Special Mode None Game No. 16 Rogue 16 Adventurer 0 Explorer 0 Win Type - Total 0 Types 0/0/0/0/0/0/0/0/0/0 Lore% 5 Gallery% 13 Achievement% 12 Wizard Run 0 Options --------- Layout 1 ASCII 0 Keyboard 0 Movement Mouse Keybinds 0 Fullscreen 1 Font 24/Smallcaps Map View 50x35 Zoom Use 0% Tactical HUD 1 Map Filters NONE Filters NONE Steam 1 RUN: 295051fc-af08-47cd-bf5a-96f771d88566